fUST/lending_fUST_20250726
["ID","MTS","AMOUNT","RATE_DAILY","PERIOD"]
[375140360,1753543834563,-460.0,0.0001945,2]
[375140361,1753543834572,-463.6029825,0.0001945,2]
[375140362,1753543834582,-460.0,0.0001945,2]
[375140363,1753543834592,-460.0,0.0001945,2]
[375140364,1753543834601,-460.0,0.0001945,2]
[375140365,1753543834611,-460.0,0.0001945,2]
[375140366,1753543834622,-460.0,0.0001945,2]
[375140367,1753543834631,-460.0,0.0001945,2]
[375140368,1753543834641,-460.0,0.0001945,2]
[375140369,1753543834650,-460.0,0.0001945,2]
[375140370,1753543834660,-460.0,0.0001945,2]
[375140371,1753543834669,-485.05338517,0.0001945,2]
[375140372,1753543834679,-460.0,0.0001945,2]
[375140373,1753543834689,-460.0,0.0001945,2]
[375140374,1753543834701,-478.65322308,0.0001945,2]
[375140375,1753543834711,-460.0,0.0001945,2]
[375140376,1753543834721,-561.28641421,0.0001945,2]
[375140377,1753543834730,-462.07709262,0.0001945,2]
[375140378,1753543834740,-460.0,0.0001945,2]
[375140379,1753543834749,-460.0,0.0001945,2]
[375140380,1753543834759,-460.0,0.0001945,2]
[375140381,1753543834768,-460.0,0.0001945,2]
[375140382,1753543834778,-460.0,0.0001945,2]
[375140383,1753543834787,-460.0,0.0001945,2]
[375140384,1753543834797,-460.0,0.0001945,2]
[375140385,1753543834807,-460.0,0.0001945,2]
[375140386,1753543834816,-208.49676844,0.0001945,2]
[375140387,1753543834826,-460.0,0.0001945,2]
[375140388,1753543834836,-460.0,0.0001945,2]
[375140389,1753543834845,-460.0,0.0001945,2]
[375140390,1753543834855,-460.0,0.0001945,2]
[375140391,1753543834865,-460.0,0.0001945,2]
[375140392,1753543834875,-460.0,0.0001945,2]
[375140393,1753543834885,-460.0,0.0001945,2]
[375140394,1753543834895,-460.0,0.0001945,2]
[375140395,1753543834904,-460.0,0.0001945,2]
[375140396,1753543834914,-460.0,0.0001945,2]
[375140397,1753543834924,-463.74420545,0.0001945,2]
[375140398,1753543834933,-460.0,0.0001945,2]
[375140399,1753543834947,-460.0,0.0001945,2]
[375140400,1753543834957,-462.52318657,0.0001945,2]
[375140401,1753543834966,-500.0,0.0001945,2]
[375140402,1753543834976,-460.0,0.0001945,2]
[375140403,1753543834986,-460.0,0.0001945,2]
[375140404,1753543834995,-470.01,0.0001945,2]
[375140405,1753543835005,-460.0,0.0001945,2]
[375140406,1753543835015,-528.03,0.0001945,2]
[375140407,1753543835025,-460.0,0.0001945,2]
[375140408,1753543835035,-460.0,0.0001945,2]
[375140409,1753543835045,-460.0,0.0001945,2]
[375140410,1753543835054,-460.0,0.0001945,2]
[375140411,1753543835064,-460.0,0.0001945,2]
[375140412,1753543835074,-460.0,0.0001945,2]
[375140413,1753543835084,-460.0,0.0001945,2]
[375140414,1753543835094,-460.0,0.0001945,2]
[375140415,1753543835104,-460.0,0.0001945,2]
[375140416,1753543835114,-460.0,0.0001945,2]
[375140417,1753543835123,-460.0,0.0001945,2]
[375140418,1753543835133,-258.02921341,0.0001945,2]
[375140419,1753543835143,-460.0,0.0001945,2]
[375140420,1753543835153,-184.594539,0.0001945,2]
[375140421,1753543835162,-502.40855876,0.0001945,2]
[375140422,1753543835172,-460.0,0.0001945,2]
[375140423,1753543835181,-460.0,0.0001945,2]
[375140424,1753543835191,-188.61200664,0.0001945,2]
[375140425,1753543835201,-460.0,0.0001945,2]
[375140426,1753543835210,-460.0,0.0001945,2]
[375140427,1753543835220,-460.0,0.0001945,2]
[375140428,1753543835229,-460.0,0.0001945,2]
[375140429,1753543835239,-460.0,0.0001945,2]
[375140430,1753543835248,-460.0,0.0001945,2]
[375140431,1753543835257,-460.0,0.0001945,2]
[375140432,1753543835267,-460.0,0.0001945,2]
[375140433,1753543835276,-462.26943869,0.0001945,2]
[375140434,1753543835286,-460.0,0.0001945,2]
[375140435,1753543835296,-460.0,0.0001945,2]
[375140436,1753543835305,-460.0,0.0001945,2]
[375140437,1753543835314,-460.0,0.0001945,2]
[375140438,1753543835324,-207.58775708,0.00019451,2]
[375140439,1753543835333,-460.0,0.00019451,2]
[375140440,1753543835343,-460.0,0.00019451,2]
[375140441,1753543835353,-460.0,0.00019451,2]
[375140442,1753543835362,-461.82082709,0.00019451,2]
[375140443,1753543835373,-460.0,0.00019451,2]
[375140444,1753543835382,-460.0,0.00019451,2]
[375140445,1753543835394,-460.0,0.00019451,2]
[375140446,1753543835403,-117.41509949,0.00019451,2]
[375140447,1753543835421,-342.58490051,0.00019451,2]
[375140448,1753543835431,-460.0,0.00019451,2]
[375140449,1753543835441,-460.0,0.00019451,2]
[375140450,1753543835451,-460.0,0.00019451,2]
[375140451,1753543835461,-460.0,0.00019451,2]
[375140452,1753543835471,-416.03089515,0.00019451,2]
[375140453,1753543835481,-432.20930398,0.00019451,2]
[375140454,1753543835490,-218.29183353,0.00019451,2]
[375140455,1753543835502,-241.70816647,0.00019451,2]
[375140456,1753543835512,-460.0,0.00019451,2]
[375140457,1753543835521,-42.87535935,0.00019451,2]
[375140458,1753543835533,-417.12464065,0.00019451,2]
[375140459,1753543835542,-460.0,0.00019451,2]
[375140460,1753543835553,-460.0,0.00019451,2]
[375140461,1753543835562,-460.0,0.00019451,2]
[375140462,1753543835571,-460.77007548,0.00019451,2]
[375140463,1753543835581,-460.0,0.00019451,2]
[375140464,1753543835591,-460.0,0.00019451,2]
[375140465,1753543835600,-460.0,0.00019451,2]
[375140466,1753543835610,-460.0,0.00019451,2]
[375140467,1753543835620,-461.37700377,0.00019451,2]
[375140468,1753543835630,-460.0,0.00019451,2]
[375140469,1753543835641,-460.0,0.00019451,2]
[375140470,1753543835651,-460.0,0.00019451,2]
[375140471,1753543835660,-197.42225695,0.00019451,2]
[375140472,1753543835670,-460.0,0.00019451,2]
[375140473,1753543835679,-460.0,0.00019451,2]
[375140474,1753543835691,-460.0,0.00019451,2]
[375140475,1753543835700,-460.0,0.00019451,2]
[375140476,1753543835710,-460.0,0.00019451,2]
[375140477,1753543835719,-460.0,0.00019451,2]
[375140478,1753543835729,-460.0,0.00019451,2]
[375140479,1753543835738,-932.94,0.00019451,2]
[375140480,1753543835748,-460.0,0.00019451,2]
[375140481,1753543835758,-460.0,0.00019451,2]
[375140482,1753543835767,-287.51209431,0.00019452,2]
[375140483,1753543835776,-460.0,0.00019721,2]
[375140484,1753543835898,-460.0,0.00019721,2]
[375140485,1753543835909,-460.0,0.00019721,2]
[375140486,1753543835919,-460.0,0.00019721,2]
[375140487,1753543835929,-76.40264755,0.00019721,2]
[375140488,1753543835945,-383.59735245,0.00019721,2]
[375140489,1753543835955,-221.85264755,0.00019721,2]
[375140490,1753543835967,-238.14735245,0.00019721,2]
[375140491,1753543835976,-460.0,0.00019721,2]
[375140492,1753543835987,-381.13548628,0.00019722,2]
[375140493,1753543835999,-78.86451372,0.00019722,2]
[375140494,1753543836008,-460.0,0.00019722,2]
[375140495,1753543836019,-460.0,0.00019722,2]
[375140496,1753543836029,-460.0,0.00019722,2]
[375140497,1753543836039,-460.0,0.00019722,2]
[375140498,1753543836048,-460.0,0.00019722,2]
[375140499,1753543836058,-804.4,0.00019722,2]
[375140500,1753543836068,-460.0,0.00019722,2]
[375140501,1753543836078,-460.0,0.00019722,2]
[375140502,1753543836087,-583.62,0.00019722,2]
[375140503,1753543836097,-460.0,0.00019722,2]
[375140504,1753543836107,-460.0,0.00019722,2]
[375140505,1753543836117,-460.0,0.00019722,2]
[375140506,1753543836126,-460.0,0.00019722,2]
[375140507,1753543836136,-1145.52,0.00019722,2]
[375140508,1753543836146,-460.0,0.00019722,2]
[375140509,1753543836156,-460.0,0.00019722,2]
[375140510,1753543836166,-460.0,0.00019722,2]
[375140511,1753543836175,-460.0,0.00019722,2]
[375140512,1753543836185,-460.0,0.00019723,2]
[375140513,1753543836196,-460.0,0.00019723,2]
[375140514,1753543836205,-460.0,0.00019723,2]
[375140515,1753543836215,-146.2860239,0.00019723,2]
[375140516,1753543836227,-313.7139761,0.00019723,2]
[375140517,1753543836236,-402.70857405,0.00019723,2]
[375140554,1753543838217,-460.0,0.00019449,2]
[375140556,1753543838228,-57.29142595,0.00019723,2]
[375140558,1753543838238,-460.0,0.00019723,2]
[375140560,1753543838247,-866.61,0.00019723,2]
[375140562,1753543838257,-460.0,0.00019723,2]
[375140565,1753543838267,-574.12592616,0.00019723,2]
[375140566,1753543838277,-136.95901614,0.00019723,2]
[375140569,1753543838290,-323.04098386,0.00019723,2]
[375140571,1753543838299,-460.0,0.00019723,2]
[375140573,1753543838309,-460.0,0.00019723,2]
[375140575,1753543838318,-195.39681293,0.00019723,2]
[375140577,1753543838329,-264.60318707,0.00019723,2]
[375140579,1753543838339,-460.0,0.00019723,2]
[375140581,1753543838348,-249.98140943,0.00019723,2]
[375140583,1753543838360,-210.01859057,0.00019723,2]
[375140585,1753543838370,-154.79140943,0.00019723,2]
[375140587,1753543838381,-305.20859057,0.00019723,2]
[375140589,1753543838391,-328.97680853,0.00019723,2]
[375140592,1753543838402,-131.02319147,0.00019723,2]
[375140594,1753543838411,-354.41743296,0.00019723,2]
[375140596,1753543838421,-460.0,0.00019723,2]
[375140598,1753543838430,-460.0,0.00019723,2]
[375140600,1753543838440,-460.0,0.00019723,2]
[375140602,1753543838450,-460.0,0.00019723,2]
[375140604,1753543838459,-272.77773038,0.00019723,2]
[375140606,1753543838471,-187.22226962,0.00019723,2]
[375140608,1753543838480,-460.0,0.00019723,2]
[375140610,1753543838490,-460.0,0.00019723,2]
[375140612,1753543838499,-460.0,0.00019723,2]
[375140614,1753543838509,-460.0,0.00019723,2]
[375140616,1753543838518,-460.0,0.00019723,2]
[375140618,1753543838528,-460.0,0.00019723,2]
[375140620,1753543838537,-602.85,0.00019723,2]
[375140622,1753543838546,-460.0,0.00019723,2]
[375140624,1753543838555,-460.0,0.00019724,2]
[375140626,1753543838564,-460.0,0.00019724,2]
[375140628,1753543838574,-460.0,0.00019724,2]
[375140630,1753543838584,-460.0,0.00019724,2]
[375140632,1753543838593,-460.0,0.00019724,2]
[375140633,1753543838602,-460.67562753,0.00019724,2]
[375140634,1753543838612,-460.0,0.00019724,2]
[375140635,1753543838621,-460.0,0.00019724,2]
[375140636,1753543838630,-460.0,0.00019724,2]
[375140637,1753543838639,-460.0,0.00019724,2]
[375140638,1753543838648,-213.58859441,0.00019724,2]
[375140639,1753543838657,-460.0,0.00019724,2]
[375140640,1753543838666,-460.0,0.00019724,2]
[375140641,1753543838675,-460.0,0.00019724,2]
[375140642,1753543838684,-460.0,0.00019724,2]
[375140643,1753543838694,-460.0,0.00019724,2]
[375140644,1753543838703,-460.0,0.00019724,2]
[375140645,1753543838713,-528.03,0.00019724,2]
[375140646,1753543838722,-460.0,0.00019724,2]
[375140647,1753543838731,-460.0,0.00019724,2]
[375140648,1753543838740,-460.0,0.00019724,2]
[375140649,1753543838749,-460.0,0.00019724,2]
[375140650,1753543838759,-460.0,0.00019724,2]
[375140652,1753543838768,-1016.15,0.00019724,2]
[375140653,1753543838778,-460.0,0.00019724,2]
[375140654,1753543838787,-460.0,0.00019725,2]
[375140655,1753543838797,-582.14173083,0.00019725,2]
[375140656,1753543838806,-460.0,0.00019725,2]
[375140658,1753543838815,-460.0,0.00019725,2]
[375140660,1753543838825,-460.0,0.00019725,2]
[375140662,1753543838835,-932.94,0.00019725,2]
[375140664,1753543838844,-460.0,0.00019725,2]
[375140666,1753543838853,-500.0,0.00019773,2]
[375140668,1753543838862,-500.0,0.00019973,2]
[375140670,1753543838872,-460.0,0.00019995,2]
[375140672,1753543838882,-460.0,0.00019995,2]
[375140674,1753543838891,-236.55727065,0.00019995,2]
[375140676,1753543838901,-460.0,0.00019995,2]
[375140678,1753543838910,-460.0,0.00019995,2]
[375140680,1753543838920,-460.0,0.00019995,2]
[375140682,1753543838931,-460.0,0.00019995,2]
[375140684,1753543838941,-460.0,0.00019996,2]
[375140686,1753543838955,-460.0,0.00019996,2]
[375140688,1753543838964,-178.42765522,0.00019996,2]
[375140690,1753543838977,-281.57234478,0.00019996,2]
[375140692,1753543838986,-460.0,0.00019996,2]
[375140694,1753543838996,-804.4,0.00019996,2]
[375140696,1753543839006,-460.0,0.00019996,2]
[375140698,1753543839015,-460.0,0.00019996,2]
[375140700,1753543839025,-583.62,0.00019996,2]
[375140702,1753543839035,-460.0,0.00019996,2]
[375140704,1753543839044,-460.0,0.00019996,2]
[375140706,1753543839053,-460.0,0.00019996,2]
[375140708,1753543839063,-1145.52,0.00019996,2]
[375140710,1753543839072,-460.0,0.00019996,2]
[375140712,1753543839081,-460.0,0.00019996,2]
[375140714,1753543839091,-460.0,0.00019996,2]
[375140716,1753543839101,-460.0,0.00019997,2]
[375140718,1753543839110,-460.0,0.00019997,2]
[375140720,1753543839120,-460.0,0.00019997,2]
[375140722,1753543839129,-198.63087513,0.00019997,2]
[375140724,1753543839139,-460.0,0.00019997,2]
[375140726,1753543839149,-866.61,0.00019997,2]
[375140728,1753543839159,-460.0,0.00019997,2]
[375140730,1753543839168,-460.0,0.00019997,2]
[375140732,1753543839178,-460.0,0.00019997,2]
[375140734,1753543839192,-460.0,0.00019997,2]
[375140736,1753543839202,-460.0,0.00019997,2]
[375140738,1753543839211,-460.0,0.00019997,2]
[375140740,1753543839221,-209.98085329,0.00019997,2]
[375140742,1753543839230,-460.0,0.00019997,2]
[375140744,1753543839240,-460.0,0.00019997,2]
[375140746,1753543839249,-460.0,0.00019997,2]
[375140748,1753543839259,-460.0,0.00019997,2]
[375140750,1753543839268,-460.0,0.00019997,2]
[375140752,1753543839277,-460.0,0.00019997,2]
[375140754,1753543839287,-460.0,0.00019997,2]
[375140756,1753543839296,-356.65204649,0.00019997,2]
[375140883,1753543840371,-414.0907569,0.00019348,2]
[375140886,1753543840383,-103.34795351,0.00019997,2]
[375140888,1753543840393,-460.0,0.00019997,2]
[375140889,1753543840402,-381.13,0.00019997,2]
[375140891,1753543840412,-460.0,0.00019997,2]
[375140893,1753543840421,-460.0,0.00019997,2]
[375140895,1753543840431,-460.0,0.00019997,2]
[375140897,1753543840442,-512.17801128,0.00019997,2]
[375140906,1753543840515,-90.67198872,0.00019997,2]
[375140908,1753543840525,-207.56370743,0.00019997,2]
[375140910,1753543840536,-252.43629257,0.00019997,2]
[375140912,1753543840547,-204.97858895,0.00019998,2]
[375140914,1753543840557,-460.0,0.00019998,2]
[375140916,1753543840566,-460.0,0.00019998,2]
[375140918,1753543840575,-460.0,0.00019998,2]
[375140920,1753543840584,-460.0,0.00019998,2]
[375140922,1753543840594,-460.0,0.00019998,2]
[375140924,1753543840603,-460.0,0.00019998,2]
[375140926,1753543840613,-460.0,0.00019998,2]
[375140928,1753543840622,-528.03,0.00019998,2]
[375140930,1753543840632,-460.0,0.00019998,2]
[375140932,1753543840642,-460.0,0.00019998,2]
[375140934,1753543840651,-460.0,0.00019998,2]
[375140936,1753543840661,-1016.15,0.00019998,2]
[375140938,1753543840670,-460.0,0.00019998,2]
[375140940,1753543840680,-460.0,0.00019999,2]
[375140942,1753543840691,-460.0,0.00019999,2]
[375140944,1753543840701,-460.0,0.00019999,2]
[375140946,1753543840711,-460.0,0.00019999,2]
[375140948,1753543840721,-932.94,0.00019999,2]
[375140950,1753543840730,-460.0,0.00019999,2]
[375140952,1753543840739,-564.44515519,0.0002,2]
[375140954,1753543840751,-30.83996329,0.00020142,2]
[375140956,1753543840763,-141.77003671,0.00020142,2]
[375140958,1753543840772,-460.0,0.00020269,2]
[375140960,1753543840781,-460.0,0.00020269,2]
[375140962,1753543840791,-460.0,0.00020269,2]
[375140964,1753543840800,-460.0,0.00020269,2]
[375140966,1753543840809,-460.0,0.00020269,2]
[375140968,1753543840819,-151.80139244,0.0002027,2]
[375140970,1753543840828,-370.67125145,0.0002027,2]
[375140972,1753543840840,-433.72874855,0.0002027,2]
[375140974,1753543840850,-460.0,0.0002027,2]
[375140976,1753543840859,-460.0,0.0002027,2]
[375140978,1753543840869,-583.62,0.0002027,2]
[375140980,1753543840878,-460.0,0.0002027,2]
[375140982,1753543840887,-460.0,0.0002027,2]
[375140984,1753543840897,-460.0,0.0002027,2]
[375140986,1753543840907,-1145.52,0.0002027,2]
[375140988,1753543840916,-460.0,0.0002027,2]
[375140990,1753543840926,-460.0,0.0002027,2]
[375140992,1753543840935,-460.0,0.00020271,2]
[375140994,1753543840948,-460.0,0.00020271,2]
[375140996,1753543840959,-460.0,0.00020271,2]
[375140998,1753543840969,-866.61,0.00020271,2]
[375141000,1753543840979,-460.0,0.00020271,2]
[375141002,1753543840988,-460.0,0.00020271,2]
[375141004,1753543840997,-460.0,0.00020271,2]
[375141006,1753543841006,-460.0,0.00020271,2]
[375141017,1753543841112,-309.22722716,0.00020271,2]
[375141019,1753543841125,-460.0,0.00020271,2]
[375141021,1753543841135,-460.0,0.00020271,2]
[375141023,1753543841145,-460.0,0.00020271,2]
[375141025,1753543841154,-460.0,0.00020271,2]
[375141027,1753543841163,-460.0,0.00020271,2]
[375141029,1753543841173,-499.93085691,0.00020271,2]
[375141031,1753543841183,-460.0,0.00020271,2]
[375141033,1753543841194,-460.0,0.00020271,2]
[375141035,1753543841203,-460.0,0.00020271,2]
[375141037,1753543841213,-460.0,0.00020271,2]
[375141039,1753543841222,-460.0,0.00020271,2]
[375141041,1753543841231,-460.0,0.00020271,2]
[375141043,1753543841240,-460.0,0.00020271,2]
[375141045,1753543841250,-602.85,0.00020271,2]
[375141047,1753543841259,-460.0,0.00020271,2]
[375141049,1753543841269,-460.0,0.00020272,2]
[375141051,1753543841278,-460.0,0.00020272,2]
[375141053,1753543841287,-460.0,0.00020272,2]
[375141055,1753543841296,-460.0,0.00020272,2]
[375141057,1753543841306,-460.0,0.00020272,2]
[375141059,1753543841315,-460.0,0.00020272,2]
[375141061,1753543841324,-460.0,0.00020272,2]
[375141063,1753543841334,-422.24375205,0.00020272,2]
[375141362,1753543844480,-303.81059378,0.00019155,2]
[375141364,1753543844492,-348.94651761,0.00019155,2]
[375141366,1753543844503,-755.50808267,0.00019155,2]
[375141368,1753543844513,-460.0,0.00019448,2]
[375141370,1753543844523,-356.49829188,0.00019897,2]
[375141372,1753543844532,-86.26148623,0.00020272,2]
[375141375,1753543844544,-19.52476172,0.00020272,2]
[375141377,1753543844553,-460.0,0.00020272,2]
[375141378,1753543844563,-21.55852503,0.00020272,2]
[375143255,1753544413263,159.906695,0.00013699,2]
[375143258,1753544532727,874.0,0.00026027,120]
[375143259,1753544740110,-235.978279,0.00018446,2]
[375143260,1753544740130,-186.547732,0.00019178,2]
[375143261,1753544740150,-383.91122039,0.00019346,2]
[375143262,1753544740170,-113.52430541,0.00019438,2]
[375143263,1753544778173,1472.26,0.00023,30]
[375143264,1753544803070,1000.0,0.00023,30]
[375143265,1753544826213,1500.0,0.00023,30]
[375143266,1753544827095,-240.52892974,0.00019444,2]
[375143267,1753544848098,-59.47107026,0.00019444,2]
[375143268,1753544848128,-300.0,0.00019444,2]
[375143269,1753544848152,-1200.0,0.00019444,2]
[375143270,1753544848178,-300.0,0.00019444,2]
[375143271,1753544848201,-1947.95436338,0.00019445,2]
[375143272,1753544848224,-460.0,0.00019445,2]
[375143273,1753544848400,-326.95996839,0.00019445,2]
[375143274,1753544850218,1000.0,0.00023,30]
[375143275,1753544851077,-133.04003161,0.00019445,2]
[375143276,1753544851101,-460.0,0.00019445,2]
[375143277,1753544851123,-460.0,0.00019445,2]
[375143278,1753544851145,-460.0,0.00019445,2]
[375143279,1753544851172,-460.0,0.00019445,2]
[375143280,1753544851202,-460.0,0.00019445,2]
[375143281,1753544851226,-460.0,0.00019445,2]
[375143282,1753544851250,-460.0,0.00019445,2]
[375143283,1753544851274,-168.03731023,0.00019445,2]
[375143284,1753544851296,-381.760019,0.00019445,2]
[375143285,1753544851318,-460.0,0.00019445,2]
[375143286,1753544851340,-460.0,0.00019445,2]
[375143287,1753544851366,-224.3699211,0.00019445,2]
[375143288,1753544886717,915.0,0.00023,30]
[375143332,1753545032483,-391.87653712,0.0001935,2]
[375143334,1753545032494,-389.72,0.0001944,3]
[375143336,1753545032504,-297.42,0.0001944,3]
[375143337,1753545032513,-163.84691727,0.0001944,3]
[375143339,1753545032525,-679.03551762,0.0001944,3]
[375143343,1753545032554,-49.39756511,0.0001944,3]
[375143345,1753545032563,-300.0,0.00019444,2]
[375143346,1753545032574,-527.4000789,0.00019445,2]
[375143347,1753545032583,-460.0,0.00019445,2]
[375143348,1753545032593,-460.0,0.00019445,2]
[375143349,1753545032603,-460.0,0.00019445,2]
[375143350,1753545032612,-460.0,0.00019445,2]
[375143352,1753545032622,-460.0,0.00019445,2]
[375143353,1753545032631,-533.39,0.00019445,2]
[375143354,1753545032641,-460.0,0.00019445,2]
[375143355,1753545032650,-460.0,0.00019445,2]
[375143356,1753545032659,-460.0,0.00019445,2]
[375143357,1753545032669,-460.0,0.00019445,2]
[375143358,1753545032678,-119.35933634,0.00019445,2]
[375143359,1753545032750,-340.64066366,0.00019445,2]
[375143361,1753545032760,-238.47875021,0.00019445,2]
[375143362,1753545032771,-221.52124979,0.00019445,2]
[375143363,1753545032781,-488.65255023,0.00019445,2]
[375143364,1753545032793,-81.62852422,0.00019445,2]
[375143365,1753545032804,-460.0,0.00019445,2]
[375143366,1753545032813,-460.0,0.00019445,2]
[375143367,1753545032823,-460.0,0.00019445,2]
[375143368,1753545032833,-462.34368805,0.00019445,2]
[375143369,1753545032843,-460.0,0.00019445,2]
[375143370,1753545032853,-434.31225738,0.00019445,2]
[375143371,1753545032865,-25.68774262,0.00019445,2]
[375143372,1753545032875,-460.0,0.00019445,2]
[375143373,1753545032884,-460.0,0.00019445,2]
[375143374,1753545032895,-464.89380412,0.00019445,2]
[375143375,1753545032905,-476.7036086,0.00019445,2]
[375143376,1753545032915,-460.0,0.00019445,2]
[375143377,1753545032925,-460.0,0.00019445,2]
[375143378,1753545032935,-471.28412654,0.00019445,2]
[375143379,1753545032945,-1074.92,0.00019445,2]
[375143380,1753545032956,-460.0,0.00019445,2]
[375143381,1753545032967,-463.49769264,0.00019445,2]
[375143382,1753545032978,-460.0,0.00019445,2]
[375143384,1753545032988,-460.0,0.00019445,2]
[375143386,1753545032999,-460.0,0.00019445,2]
[375143388,1753545033009,-460.0,0.00019445,2]
[375143390,1753545033019,-460.0,0.00019445,2]
[375143392,1753545033028,-460.0,0.00019445,2]
[375143394,1753545033038,-460.0,0.00019445,2]
[375143395,1753545033048,-460.0,0.00019445,2]
[375143397,1753545033058,-460.0,0.00019445,2]
[375143399,1753545033068,-460.0,0.00019445,2]
[375143401,1753545033079,-460.0,0.00019445,2]
[375143403,1753545033088,-399.24365653,0.00019445,2]
[375143405,1753545033099,-262.29962447,0.00019445,2]
[375143406,1753545033108,-204.80719875,0.00019445,2]
[375143407,1753545033118,-305.8984454,0.00019445,2]
[375143408,1753545033128,-460.0,0.00019445,2]
[375143409,1753545033138,-460.0,0.00019445,2]
[375143410,1753545033147,-460.0,0.00019445,2]
[375143411,1753545033157,-460.0,0.00019446,2]
[375143412,1753545033167,-461.09084379,0.00019446,2]
[375143413,1753545033178,-460.0,0.00019446,2]
[375143414,1753545033187,-460.0,0.00019446,2]
[375143415,1753545033197,-506.64214284,0.00019446,2]
[375143416,1753545033208,-460.0,0.00019446,2]
[375143417,1753545033219,-455.14019,0.00019446,2]
[375143418,1753545033228,-460.0,0.00019446,2]
[375143419,1753545033239,-460.0,0.00019446,2]
[375143420,1753545033249,-460.0,0.00019446,2]
[375143421,1753545033259,-460.0,0.00019446,2]
[375143422,1753545033269,-469.21307286,0.00019446,2]
[375143423,1753545033279,-460.0,0.00019446,2]
[375143424,1753545033288,-460.0,0.00019446,2]
[375143425,1753545033299,-460.0,0.00019446,2]
[375143426,1753545033309,-461.38223286,0.00019446,2]
[375143427,1753545033319,-460.77409134,0.00019446,2]
[375143428,1753545033329,-460.0,0.00019446,2]
[375143429,1753545033340,-460.0,0.00019446,2]
[375143430,1753545033350,-460.0,0.00019446,2]
[375143431,1753545033360,-460.0,0.00019446,2]
[375143432,1753545033370,-460.0,0.00019446,2]
[375143433,1753545033380,-460.0,0.00019446,2]
[375143434,1753545033390,-500.0,0.00019446,2]
[375143435,1753545033401,-624.80510969,0.00019446,2]
[375143436,1753545033414,-500.0,0.00019446,2]
[375143437,1753545033424,-255.3281656,0.00019446,2]
[375143438,1753545033433,-431.6336539,0.00019446,2]
[375143439,1753545033443,-592.87836724,0.00019446,2]
[375143440,1753545033455,-500.0,0.00019446,2]
[375143441,1753545033465,-261.03152142,0.00019446,2]
[375143442,1753545033475,-460.0,0.00019446,2]
[375143443,1753545033488,-460.0,0.00019446,2]
[375143444,1753545033498,-509.09139118,0.00019446,2]
[375143445,1753545033508,-460.0,0.00019446,2]
[375143446,1753545033518,-460.0,0.00019446,2]
[375143447,1753545033528,-485.96793181,0.00019446,2]
[375143448,1753545033538,-460.0,0.00019446,2]
[375143449,1753545033548,-460.0,0.00019446,2]
[375143450,1753545033558,-460.0,0.00019446,2]
[375143451,1753545033568,-593.44166536,0.00019446,2]
[375143452,1753545033578,-398.63614994,0.00019446,2]
[375143453,1753545033588,-460.0,0.00019446,2]
[375143454,1753545033598,-460.0,0.00019446,2]
[375143455,1753545033607,-460.0,0.00019446,2]
[375143456,1753545033617,-460.0,0.00019446,2]
[375143457,1753545033627,-460.0,0.00019446,2]